{"text_format":"1","workbook":"xlsx","n_sheets":3,"sheets":["Paper Oral Duty Member 2021-25","Paper Oral Duty member 25-26 ","Summary"],"not_rendered":{"charts":0,"images":0,"macros":0,"external_links":0,"defined_names":0,"comments":0,"pivot_tables":0},"unopened":[],"bounds":{"document_bytes":16777216,"sheet_cells":100000,"rows_first":2000,"rows_last":500,"rows_between":2000,"halvings":0,"cell_chars":16384,"cell_head_chars":4096},"cells_cut":0,"cells_raw":0,"read":"whole","date_system":"1900"}

{"sheet":"Paper Oral Duty Member 2021-25","index":0,"n_rows":88,"n_cols":16,"rows_kept":88,"cut":false,"hidden":false,"merged":[]}
[null,null,"Completed paper hearings conducted by the Parole Board 2021/22 - 2024/25, split by sentence type, review type and outcome"]
[]
[]
[null,null,"Paper Hearings ",null,"Determinate",null,null,null,"Life",null,null,null,null,"IPP"]
[]
[1,null,"Review ","No Release","To Oral ","Release",null,"No Release","To Oral ","Open","Release",null,"No Release","To Oral ","Open","Release"]
[]
[null,null,"2021/22",893,1291,38,null,307,947,9,3,null,277,900,3,6]
[null,null,"2022/23",897,1333,32,null,233,815,6,3,null,199,708,3,5]
[null,null,"2023/24",1234,1516,48,null,362,768,6,2,null,237,638,2,6]
[null,null,"2024/25",1540,1761,33,null,320,877,5,2,null,204,558,1,3]
[]
[null,null,"Recall "]
[]
[null,null,"2021/22",7392,4010,617,null,70,237,"NULL",12,null,115,450,"NULL",29]
[null,null,"2022/23",7093,3803,553,null,61,262,"NULL",5,null,105,449,"NULL",18]
[null,null,"2023/24",6417,2868,555,null,71,311,"NULL",20,null,141,510,"NULL",44]
[null,null,"2024/25",7544,3721,407,null,99,276,1,11,null,156,487,1,25]
[null,null,null,null,null,null,null,"*2023/24"]
[null,null,null,null,null,null,null,"Life and IPP (ISP) - Review and Recall Combined"]
[null,null,null,null,null,null,null,"No Release","To Oral ","Open"]
[null,null,null,null,null,null,null,811,2227,8,72]
[null,null,null,null,null,null,null,"*2024/25"]
[null,null,null,null,null,null,null,"Life and IPP (ISP) - Review and Recall Combined"]
[null,null,null,null,null,null,null,"No release","To Oral ","Open"]
[null,null,null,null,null,null,null,{"$f":"SUM(H11,H18,M11,M18)","v":779},{"$f":"SUM(I11,I18,N11,N18)","v":2198},{"$f":"SUM(J11,J18,O11,O18)","v":8},{"$f":"SUM(K11,K18,P11,P18)","v":41}]
[]
[]
[]
[]
[]
[]
[]
[null,null,"Requests for oral hearings conducted by the Parole Board  2021/22   split by sentence type, review type and outcome"]
[]
[]
[null,null,"Requests ",null,"Determinate",null,null,"Life",null,null,"IPP"]
[2]
[null,null,"Review ","Decline","Grant ",null,"Decline","Grant ",null,"Decline","Grant "]
[]
[null,null,"2021/22",36,99,null,12,30,null,19,36]
[null,null,"2022/23",54,83,null,7,12,null,11,20]
[null,null,"2023/24",85,97,null,19,25,null,20,27]
[null,null,"2024/25",121,130,null,31,37,null,23,18]
[]
[null,null,"Recall ","Decline","Grant "]
[]
[null,null,"2021/22",186,271]
[null,null,"2022/23",193,217]
[null,null,"2023/24",233,194]
[null,null,"2024/25",454,460]
[]
[]
[]
[]
[]
[]
[]
[]
[]
[]
[null,null,"Completed oral hearings conducted by the Parole Board 2021/22  - 2024/25,  split by sentence type, review type and outcome"]
[3]
[]
[null,null,"Oral Hearings ",null,"Determinate",null,null,"Life",null,null,null,"IPP"]
[null,null,null,"No Release","Release",null,"No Release","Open","Release",null,"No Release","Open","Release"]
[null,null,"Review "]
[null,null,"2021/22",581,519,null,262,283,302,null,252,208,389]
[null,null,"2022/23",624,459,null,259,212,318,null,267,163,362]
[null,null,"2023/24",689,603,null,276,217,343,null,290,131,335]
[null,null,"2024/25",847,708,null,246,283,283,null,230,133,261]
[]
[]
[null,null,"Recall "]
[null,null,"2021/22",1124,1688,null,45,22,172,null,88,41,364]
[null,null,"2022/23",1169,1472,null,47,12,138,null,94,20,272]
[null,null,"2023/24",1469,1801,null,50,13,221,null,118,24,392]
[null,null,"2024/25",1367,1467,null,93,19,218,null,144,58,454]
[]
[]
[]
[null,null,"Advice"]
[null,null,"2022/23","No Release",null,null,"Open",null,null,null,"Release"]
[null,null,null,2,null,null,0,null,null,null,0]
[null,null,"2022/24","No Release",null,null,"Open",null,null,null,"Release"]
[null,null,null,1,null,null,0,null,null,null,0]
[null,null,"2024/25","No Release",null,null,"Open",null,null,null,"Release"]
[null,null,null,0,null,null,0,null,null,null,0]

{"sheet":"Paper Oral Duty member 25-26 ","index":1,"n_rows":60,"n_cols":11,"rows_kept":60,"cut":false,"hidden":false,"merged":[]}
[]
[null,null,null,null,"25/26 Completed paper hearings conducted by the Parole Board split by sentence type, review type and outcome"]
[]
[]
[]
[]
[]
[null,null,null,null,null,null,null,"No Release","To  Oral Hearing ","Release","Open"]
[null,null,null,null,"GPP","ISP Review (Combined total) ",null,{"$f":"SUM(H10,H11)","v":573},{"$f":"SUM(I10,I11)","v":1623},{"$f":"SUM(J10,J11)","v":2},6]
[null,1,null,null,null,"IPP Review",null,211,715,1,0]
[null,null,null,null,null,"Life Review",null,362,908,1,6]
[null,null,null,null,null,"ISP Recall (Combined total) ",null,{"$f":"SUM(H13,H14)","v":166},{"$f":"SUM(I13,I14)","v":612},18,0]
[null,null,null,null,null,"IPP Recall",null,87,382,13,0]
[null,null,null,null,null,"Life Recall ",null,79,230,5,0]
[null,null,null,null,"Standard Determinate Recalls ","01 Recall",null,6804,2947,282,"N/A"]
[null,null,null,null,"Determinate Recalls ","(EDS)",null,467,382,12,"N/A"]
[null,null,null,null,"Other Determinate ","Recall Reviews",null,21,15,0,"N/A"]
[null,null,null,null,"Determinate Conditional Release ","(DCR) - Pre Release",null,2,2,0,"N/A"]
[null,null,null,null,"EDS ","(Pre-Release Reviews)",null,1032,952,4,"N/A"]
[null,null,null,null,"Sentence of Particular Concern","(SOPC)",null,132,249,2,"N/A"]
[]
[]
[]
[]
[]
[]
[null,null,null,null,"25/26 Requests for oral hearings conducted by the Parole Board    split by sentence type, review type and outcome"]
[]
[null,2,null,null,null,null,null,"Decline","Grant "]
[null,null,null,null,"GPP","ISP Review (Combined total) ",null,{"$f":"SUM(H31,H32)","v":61},{"$f":"SUM(I31,I32)","v":62}]
[null,null,null,null,null,"IPP Review",null,27,21]
[null,null,null,null,null,"Life Review",null,34,41]
[null,null,null,null,"Standard Determinate Recalls ","01 Recall",null,401,412]
[null,null,null,null,"Determinate Recalls ","(EDS)",null,53,53]
[null,null,null,null,"Other Determinate ","Recall Reviews",null,3,1]
[null,null,null,null,"Determinate Conditional Release ","(DCR) - Pre Release",null,0,0]
[null,null,null,null,"EDS ","(Pre-Release Reviews)",null,91,75]
[null,null,null,null,"Sentence of Particular Concern"," (SOPC/SDOPC) - Pre Release",null,8,17]
[null,null,null,null,null,null,"Total "]
[]
[]
[]
[]
[]
[]
[]
[null,null,null,null,"Completed oral hearings conducted by the Parole Board 2025/26,  split by sentence type, review type and outcome"]
[null,null,null,null,null,null,null,"No Release","Release","Open "]
[null,3,null,null,"GPP","ISP Review (Combined total) ",null,{"$f":"SUM(H50,H51)","v":549},{"$f":"SUM(I50,I51)","v":568},401]
[null,null,null,null,null,"IPP Review",null,245,255,104]
[null,null,null,null,null,"Life Review",null,304,313,297]
[null,null,null,null,null,"ISP Recall (Combined total) ",null,{"$f":"SUM(H53,H54)","v":201},{"$f":"SUM(I53,I54)","v":466},96]
[null,null,null,null,null,"IPP Recall",null,121,283,72]
[null,null,null,null,null,"Life Recall ",null,80,183,24]
[null,null,null,null,"Standard Determinate Recalls ","01 Recall",null,1586,1136,"N/A"]
[null,null,null,null,"Determinate Recalls ","(EDS)",null,224,169,"N/A"]
[null,null,null,null,"Other Determinate ","Recall Reviews",null,29,6,"N/A"]
[null,null,null,null,"Determinate Conditional Release ","(DCR) - Pre Release",null,6,2,"N/A"]
[null,null,null,null,"EDS ","(Pre-Release Reviews)",null,609,332,"N/A"]
[null,null,null,null,"Sentence of Particular Concern","(SOPC)",null,127,141,"N/A"]

{"sheet":"Summary","index":2,"n_rows":82,"n_cols":8,"rows_kept":82,"cut":false,"hidden":false,"merged":[[71,2,71,8],[58,3,58,4],[1,2,1,5],[11,2,11,7],[23,2,23,7],[34,2,34,6],[46,2,46,6],[57,2,57,5]]}
[]
[null,null,"Paper hearings conducted by the Parole Board  2021/22 - 2025/26 split between whether the hearing was deferred or completed"]
[4,null,"Year ","Total","Completed ","Deferred or Adjourned "]
[null,null,"2021/22",22530,17606,4924]
[null,null,"2022/23",21167,16583,4584]
[null,null,"2023/24",20289,15756,4533]
[null,null,"2024/25",23112,18032,5080]
[null,null,"2025/26",21485,16305,5180]
[]
[]
[]
[null,null,"Completed paper hearings by the Parole Board 2021/22 - 2025/26 , split by outcome"]
[null,null,"Year","Total ","Negative","Progression","To Oral ","% To Oral"]
[null,null,"2021/22",17606,9054,717,7835,{"$f":"G14/D14","v":0.44501874361013288}]
[5,null,"2022/23",16583,8588,625,7370,{"$f":"G15/D15","v":0.4444310438400772}]
[null,null,"2023/24",15756,8462,683,6611,{"$f":"G16/D16","v":0.41958618938816961}]
[null,null,"2024/25",18032,9863,489,7680,{"$f":"G17/D17","v":0.42590949423247559}]
[null,null,"2025/26",16305,9197,326,6782,{"$f":"G18/D18","v":0.41594602882551363}]
[]
[]
[]
[]
[]
[null,null,"Requests for oral hearings conducted by the Parole Board  2021/22 - 2025/26 , split by whether the request was granted or declined"]
[null,null,"Year","Total ","Decline ","Granted","% Granted"]
[6,null,"2021/22",689,253,436,{"$f":"F26/D26","v":0.63280116110304785}]
[null,null,"2022/23",597,265,332,{"$f":"F27/D27","v":0.55611390284757123}]
[null,null,"2023/24",700,357,343,{"$f":"F28/D28","v":0.49}]
[null,null,"2024/25",1274,629,645,{"$f":"F29/D29","v":0.50627943485086346}]
[null,null,"2025/26",1237,617,620,{"$f":"F30/D30","v":0.50121261115602267}]
[]
[]
[]
[]
[null,null,"Oral hearings conducted by the Parole Board 2021/22 - 2025/26 , split between whether the hearing was deferred or completed"]
[]
[null,null,"Year","Conducted  Hearings ","Completed Hearings ","Deferred Hearings ","Adjourned On the day","% Completed "]
[null,null,"2021/22",8835,6344,209,2282,{"$f":"E38/D38","v":0.71805319750990382}]
[7,null,"2022/23",8085,5890,195,2617,{"$f":"E39/D39","v":0.72850958565244284}]
[null,null,"2023/24",8684,6973,141,2688,{"$f":"E40/D40","v":0.80297098111469367}]
[null,null,"2024/25",8531,6811,115,2904,{"$f":"E41/D41","v":0.79838237017934588}]
[null,null,"2025/26",8835,6648,120,3262,{"$f":"E42/D42","v":0.75246179966044147}]
[null,null,"1,614 were concluded on the papers after an adjournment and these outcomes are included in the completed hearings total to AVOID DOUBLE COUNTING"]
[]
[]
[]
[null,null,"Completed oral hearings by the Parole Board 2021/22 - 2025/26 , split by outcome"]
[null,null,"Year","Total","Progression","Negative","%Progression"]
[8,null,"2021/22",6344,3990,2354,{"$f":"E49/D49","v":0.62894073139974782}]
[null,null,"2022/23",5890,3428,2462,{"$f":"E50/D50","v":0.58200339558573855}]
[null,null,"2023/24",6973,4080,2893,{"$f":"E51/D51","v":0.58511401118600315}]
[null,null,"2024/25",6811,3884,2927,{"$f":"E52/D52","v":0.57025400088092792}]
[null,null,"2025/26",6648,3317,2820,{"$f":"E53/D53","v":0.49894705174488568}]
[]
[]
[]
[]
[null,null,"All hearings conducted by the Parole Board 2021/22 - 2025/26 "]
[null,null,"All Hearings","Total"]
[null,null,"2021/22",32249]
[null,null,"2022/23",30111]
[null,null,"2023/24",30039]
[null,null,"2024/25",31979]
[null,null,"2025/26",31763]
[]
[]
[]
[]
[]
[]
[]
[null,null,"All hearings conducted by the Parole Board 2021/22 - 2025/26 broken down by  classificaton"]
[]
[null,null,"Year","2021/22","2022/23","2023/24","2024/25","2025/26"]
[null,null,"Member paper hearing (Member Case Assessment) *",22530,21167,20289,23112,21485]
[null,null,"Duty Member paper hearing (All oral hearing requests Rule 20)",689,597,700,1274,1237]
[null,null,"Total paper hearings",23219,21764,20989,23112,21485]
[null,null,"Reconsideration applications Considered ",195,262,276,249,291]
[null,null,"Set Aside applications considered","N/A ","N/A ",90,87,97]
[null,null,"IPP Licence Terminations ","N/A ","N/A ","N/A ","N/A ",1359]
[null,null,"Total oral hearings",8835,8085,8684,8531,8531]
[null,null,"Total hearings",{"$f":"SUM(D77:D81)","v":32249},{"$f":"SUM(E77:E81)","v":30111},{"$f":"SUM(F77:F81)","v":30039},{"$f":"SUM(G77:G81)","v":31979},{"$f":"SUM(H77:H81)","v":31763}]